bitfinex-derivatives/quotes_BNBF0:USTF0_20250112
["timestamp","ask_amount","ask_price","bid_price","bid_amount"]
[1736685030505,0.26558821,692.54,690.85,0.28949844]
[1736685030711,0.28880032,692.52,690.85,0.28949844]
[1736685031011,0.26558821,692.51,690.85,0.28949844]
[1736685031210,0.28881283,692.49,690.85,0.28949844]
[1736685031707,0.26562341,692.48,690.85,0.28949844]
[1736685032115,0.28882117,692.47,690.85,0.28949844]
[1736685032510,0.2656278,692.46,690.85,0.28949844]
[1736685032713,0.28882117,692.47,690.85,0.28949844]
[1736685032714,0.28882951,692.45,690.85,0.28949844]
[1736685033915,0.26562903,692.44,690.85,0.28949844]
[1736685034313,0.26562817,692.43,690.85,0.28949844]
[1736685034614,0.26562817,692.42,690.85,0.28949844]
[1736685034815,0.26562817,692.41,690.85,0.28949844]
[1736685035116,0.26562817,692.4,690.85,0.28949844]
[1736685035309,0.26562817,692.39,690.85,0.28949844]
[1736685035508,0.28882951,692.45,690.85,0.28949844]
[1736685035813,0.26562022,692.44,690.85,0.28949844]
[1736685037216,0.28883786,692.43,690.85,0.28949844]
[1736685037514,0.26562022,692.42,690.85,0.28949844]
[1736685037714,0.2888462,692.41,690.85,0.28949844]
[1736685037914,0.26562022,692.4,690.85,0.28949844]
[1736685038215,0.28885454,692.39,690.85,0.28949844]
[1736685038515,0.26562022,692.38,690.85,0.28949844]
[1736685038717,0.28886289,692.37,690.85,0.28949844]
[1736685039014,0.53125596,692.36,690.85,0.28949844]
[1736685039314,0.28887123,692.35,690.85,0.28949844]
[1736685040817,1.50958674,692.34,690.85,0.28949844]
[1736685041511,0.28887958,692.33,690.85,0.28949844]
[1736685049919,0.26565674,692.32,690.85,0.28949844]
[1736685050120,0.28888792,692.31,690.85,0.28949844]
[1736685052319,0.26565737,692.3,690.85,0.28949844]
[1736685052518,0.28889627,692.29,690.85,0.28949844]
[1736685052823,0.26565737,692.28,690.85,0.28949844]
[1736685053223,0.28889627,692.29,690.85,0.28949844]
[1736685053424,1.50980506,692.27,690.85,0.28949844]
[1736685053817,0.5545658,692.26,690.85,0.28949844]
[1736685054021,0.28891296,692.25,690.85,0.28949844]
[1736685059631,0.28891296,692.25,690.85,1.58088124]
[1736685060529,0.28891296,692.25,690.87,1.2913828]
[1736685061529,0.28891296,692.25,690.88,1.2913828]
[1736685062326,0.28891296,692.25,690.85,0.28949844]
[1736685062327,0.28891296,692.25,690.89,1.2913828]
[1736685063126,0.28891296,692.25,690.85,0.28949844]
[1736685063127,0.28891296,692.25,690.96,1.2913828]
[1736685064233,0.28891296,692.25,690.94,1.2913828]
[1736685065531,1.35857702,692.25,690.95,1.2913828]
[1736685066630,1.35857702,692.25,690.91,1.76536153]
[1736685066631,1.35857702,692.25,690.96,1.2913828]
[1736685067536,1.35857702,692.25,690.93,1.76536153]
[1736685067537,0.27823889,692.25,690.98,1.2913828]
[1736685068437,0.27823889,692.25,691.0,1.2913828]
[1736685069438,0.27823889,692.25,691.01,1.2913828]
[1736685071435,0.27823889,692.25,691.0,1.2913828]
[1736685073142,0.27823889,692.25,691.0,4.28128257]
[1736685073344,0.27823889,692.25,691.01,1.76536153]
[1736685076141,0.27823889,692.25,691.0,2.98989977]
[1736685077041,0.27823889,692.25,691.01,1.77253211]
[1736685077246,0.27823889,692.25,690.91,1.2913828]
[1736685077447,0.27823889,692.25,690.92,0.28946911]
[1736685078148,0.27823889,692.25,690.98,1.2913828]
[1736685078348,0.27823889,692.25,690.98,1.58082677]
[1736685079948,0.27823889,692.25,690.98,0.28944397]
[1736685082846,0.27823889,692.25,691.01,1.2913828]
[1736685083451,0.27823889,692.25,691.01,1.28196411]
[1736685083648,0.27823889,692.25,690.98,0.28944397]
[1736685083649,0.27823889,692.25,690.99,1.28196411]
[1736685084355,0.27823889,692.25,690.98,0.28944397]
[1736685088455,0.27823889,692.25,690.98,2.96844448]
[1736685088651,0.27823889,692.25,690.99,1.77416761]
[1736685088957,1.50910668,692.61,691.0,0.2894356]
[1736685089357,0.28876696,692.6,691.0,0.2894356]
[1736685089860,0.26554481,692.59,691.0,0.2894356]
[1736685090159,0.2887753,692.58,691.0,0.2894356]
[1736685090557,0.2887753,692.58,691.0,2.96843611]
[1736685090755,0.26555011,692.57,691.0,2.96843611]
[1736685090957,0.28878364,692.56,691.0,2.96843611]
[1736685091755,0.28878364,692.56,691.01,3.00043406]
[1736685091959,0.28878364,692.56,691.02,2.67900051]
[1736685092561,0.28878364,692.56,691.03,0.28942303]
[1736685093856,0.28878364,692.56,691.03,3.28985709]
[1736685094159,0.28878364,692.56,691.04,2.67900051]
[1736685094355,0.28878364,692.56,691.05,0.28941465]
[1736685095367,0.28878364,692.56,691.05,3.28984871]
[1736685095663,0.28878364,692.56,691.06,2.67900051]
[1736685095863,0.28878364,692.56,691.07,0.28940628]
[1736685096864,0.28878364,692.56,691.07,3.28984034]
[1736685097057,0.28878364,692.56,691.08,2.67900051]
[1736685097256,0.28878364,692.56,691.09,0.2893979]
[1736685098065,0.28878364,692.56,691.09,3.28983196]
[1736685098363,0.28878364,692.56,691.1,2.67900051]
[1736685098558,0.28878364,692.56,691.11,0.28938953]
[1736685099564,0.28878364,692.56,691.11,3.28982359]
[1736685099765,0.28878364,692.56,691.12,2.67900051]
[1736685099965,0.28878364,692.56,691.13,0.28938115]
[1736685100965,0.28878364,692.56,691.13,3.28981521]
[1736685101165,0.28878364,692.56,691.14,2.67900051]
[1736685101365,0.28878364,692.56,691.15,0.28937278]
[1736685102459,0.28878364,692.56,691.15,3.28980684]
[1736685102662,0.28878364,692.56,691.16,1.77416761]
[1736685103065,0.28878364,692.56,691.15,3.28980684]
[1736685103267,0.28878364,692.56,691.15,0.28937278]
[1736685121579,1.08033813,692.54,691.15,0.28937278]
[1736685121778,0.28879615,692.53,691.15,0.28937278]
[1736685123981,1.36913428,692.53,691.15,0.28937278]
[1736685128083,1.08033813,692.51,691.15,0.28937278]
[1736685129785,1.08033813,692.52,691.15,0.28937278]
[1736685130683,0.28879615,692.53,691.17,1.29241223]
[1736685131888,0.28879615,692.53,691.16,1.29241223]
[1736685133783,0.28879615,692.53,691.15,1.58178501]
[1736685133983,0.26556761,692.52,691.15,2.48408127]
[1736685134185,0.28879615,692.53,691.15,2.48408127]
[1736685134787,0.26556839,692.52,691.15,2.48408127]
[1736685134988,0.26556839,692.52,691.16,1.29241223]
[1736685135388,1.36913428,692.53,691.16,1.29241223]
[1736685135589,0.28880032,692.52,691.16,3.96286675]
[1736685135789,0.28880032,692.52,691.17,0.90229626]
[1736685136090,1.08033813,692.51,691.17,2.19470849]
[1736685136591,1.36914262,692.51,691.17,2.19470849]
[1736685136891,0.28880449,692.51,691.16,1.76815826]
[1736685137391,0.28880449,692.51,691.16,4.76859232]
[1736685137586,0.28880449,692.51,691.17,1.76815826]
[1736685137788,1.08033813,692.49,691.17,1.76815826]
[1736685137988,0.288817,692.48,691.17,1.76815826]
[1736685138387,0.288817,692.48,691.16,3.00043406]
[1736685138583,1.08033813,692.45,691.16,3.00043406]
[1736685138788,0.28883368,692.44,691.16,3.00043406]
[1736685138989,0.28883368,692.44,691.15,0.28937278]
[1736685140086,1.08033813,692.4,691.15,0.28937278]
[1736685140787,1.08033813,692.43,691.15,0.28937278]
[1736685140988,0.28884203,692.42,691.15,0.28937278]
[1736685142292,1.08033813,692.41,691.15,0.28937278]
[1736685143989,1.36918016,692.42,691.15,0.28937278]
[1736685144192,0.2888462,692.41,691.15,0.28937278]
[1736685148396,1.50947215,692.4,691.15,0.28937278]
[1736685148596,0.28885454,692.39,691.15,0.28937278]
[1736685160798,0.26565294,692.38,691.15,0.28937278]
[1736685160997,0.28886289,692.37,691.15,0.28937278]
[1736685161300,0.26565294,692.36,691.15,0.28937278]
[1736685161900,1.08033813,692.34,691.15,0.28937278]
[1736685162095,0.26565294,692.33,691.15,0.28937278]
[1736685162496,1.77532154,692.33,691.15,0.28937278]
[1736685162699,1.5096686,692.33,691.15,0.28937278]
[1736685163896,0.28888375,692.32,691.15,0.28937278]
[1736685183816,0.28888375,692.32,691.15,2.96719859]
[1736685185522,0.28888375,692.32,691.16,3.00043406]
[1736685185720,0.28888375,692.32,691.17,2.67782581]
[1736685187017,0.28888375,692.32,691.18,3.00043406]
[1736685187219,0.28888375,692.32,691.19,2.67782581]
[1736685188817,0.28888375,692.32,691.2,3.00043406]
[1736685189019,0.28888375,692.32,691.21,2.67782581]
[1736685189923,0.28888375,692.32,691.22,3.00043406]
[1736685190118,0.28888375,692.32,691.23,2.67782581]
[1736685191418,0.28888375,692.32,691.24,3.00043406]
[1736685191718,0.28888375,692.32,691.25,1.77354426]
[1736685193524,0.28888375,692.32,691.15,0.28937278]
[1736685199633,0.28888375,692.32,691.15,2.96503723]
[1736685200931,0.28888375,692.32,691.16,3.00043406]
[1736685201131,0.28888375,692.32,691.17,2.96502886]
[1736685201332,0.28888375,692.32,691.18,0.28936022]
[1736685202232,0.28888375,692.32,691.18,3.28979428]
[1736685202432,0.28888375,692.32,691.19,2.67566445]
[1736685203132,0.28888375,692.32,691.2,0.28935185]
[1736685203933,0.28888375,692.32,691.2,3.28978591]
[1736685204233,0.28888375,692.32,691.21,2.67566445]
[1736685205028,0.28888375,692.32,691.21,2.96501211]
[1736685205333,0.28888375,692.32,691.22,0.28934347]
[1736685205729,0.28888375,692.32,691.22,1.5817557]
[1736685205931,0.28888375,692.32,691.22,5.48430995]
[1736685206129,0.28888375,692.32,691.23,2.67566445]
[1736685206433,1.08033813,692.69,691.24,0.2893351]
[1736685206636,0.28872944,692.69,691.31,1.29241223]
[1736685207733,0.28872944,692.69,691.36,1.29241223]
[1736685208538,0.28872944,692.69,691.37,1.29241223]
[1736685209540,0.28872944,692.69,691.32,0.28930162]
[1736685210841,0.28872944,692.69,691.32,1.58171385]
[1736685211640,0.28872944,692.69,691.32,0.28930162]
[1736685222650,0.28872944,692.69,691.32,1.58171385]
[1736685223753,0.28872944,692.69,691.37,1.29241223]
[1736685224151,0.28872944,692.69,691.38,0.28927651]
[1736685224853,0.28872944,692.69,691.4,1.29241223]
[1736685227055,0.28872944,692.69,691.41,1.29241223]
[1736685228255,0.28872944,692.69,691.4,1.29241223]
[1736685229259,0.28872944,692.69,691.38,2.05282715]
[1736685230856,0.28872944,692.69,691.38,0.28927651]
[1736685240166,0.28872944,692.69,691.41,1.29241223]
[1736685241264,0.28872944,692.69,691.43,1.29241223]
[1736685241769,0.28872944,692.69,691.44,0.28925141]
[1736685242167,0.28872944,692.69,691.44,1.58166364]
[1736685242569,0.28872944,692.69,691.45,0.28924723]
[1736685243267,0.28872944,692.69,691.48,1.29241223]
[1736685244066,0.28872944,692.69,691.49,0.2892305]
[1736685244270,0.28872944,692.69,691.55,1.29241223]
[1736685245170,0.28872944,692.69,691.56,1.29241223]
[1736685245971,0.28872944,692.69,691.55,1.29241223]
[1736685246971,0.28872944,692.69,691.54,1.29241223]
[1736685248768,0.28872944,692.69,691.52,1.29241223]
[1736685249273,0.28872944,692.69,691.52,4.29284629]
[1736685249472,0.28872944,692.69,691.53,1.76355064]
[1736685251675,0.28872944,692.69,691.53,2.66559697]
[1736685252075,0.28872944,692.69,691.54,2.66559697]
[1736685252276,0.28872944,692.69,691.55,1.76355064]
[1736685252477,0.28872944,692.69,691.49,0.2892305]
[1736685252976,0.28872944,692.69,691.49,3.28966456]
[1736685253176,0.28872944,692.69,691.5,2.66559697]
[1736685254174,0.28872944,692.69,691.51,3.00043406]
[1736685254373,0.28872944,692.69,691.52,2.66559697]
[1736685256071,0.28872944,692.69,691.52,3.9580092]
[1736685256272,0.28872944,692.69,691.53,3.90248039]
[1736685256473,0.28872944,692.69,691.54,2.66559697]
[1736685257278,0.28872944,692.69,691.54,1.76355064]
[1736685257880,0.28872944,692.69,691.53,1.76355064]
[1736685259879,0.28872944,692.69,691.52,3.00043406]
[1736685260277,0.28872944,692.69,691.49,0.2892305]
[1736685272185,1.50894854,692.68,691.49,0.2892305]
[1736685272386,0.28873778,692.67,691.49,0.2892305]
[1736685274885,0.28873778,692.67,690.86,2.67668708]
[1736685275090,0.28873778,692.67,690.88,0.28948587]
[1736685277595,0.26555977,692.66,690.88,0.28948587]
[1736685278087,0.26555977,692.66,690.97,1.29241223]
[1736685278287,1.08033813,692.65,690.97,1.29241223]
[1736685278489,0.26555977,692.64,690.97,1.29241223]
[1736685278889,1.08033813,692.65,690.97,1.29241223]
[1736685279188,0.26555723,692.64,690.93,1.29241223]
[1736685279386,0.26555723,692.63,690.93,1.29241223]
[1736685279593,0.26555723,692.62,690.93,1.29241223]
[1736685279791,0.26555723,692.61,690.93,1.29241223]
[1736685280092,0.26555723,692.6,690.92,0.90392256]
[1736685280287,0.26555723,692.59,690.92,3.90309923]
[1736685280489,0.26555723,692.58,690.93,2.67668708]
[1736685280689,0.26555723,692.57,690.93,2.67668708]
[1736685280889,0.26555723,692.56,690.93,2.67668708]
[1736685281093,0.26555723,692.55,690.97,1.29241223]
[1736685281393,0.26555723,692.54,690.97,1.29241223]
[1736685281588,0.28873778,692.67,690.97,1.29241223]
[1736685281895,0.26558233,692.66,690.97,1.29241223]
[1736685282290,0.26558233,692.66,690.96,0.90392256]
[1736685282488,0.26558233,692.66,690.95,2.67668708]
[1736685283692,0.26558233,692.66,690.96,2.99917667]
[1736685283996,0.26558233,692.66,690.97,2.67668708]
[1736685285592,0.26558233,692.66,690.98,2.99917667]
[1736685285790,0.26558233,692.66,690.99,2.67668708]
[1736685286799,0.26558233,692.66,690.99,1.77276452]
[1736685286996,0.26558233,692.66,690.99,2.67457226]
[1736685287197,0.26559803,692.65,690.99,1.77276452]
[1736685287397,0.26559803,692.64,690.99,1.77276452]
[1736685287591,0.26559803,692.63,690.99,1.77276452]
[1736685287796,0.26559803,692.62,690.99,1.77276452]
[1736685287995,0.26559803,692.61,690.88,0.28948587]
[1736685288198,0.26559803,692.6,690.88,0.28948587]
[1736685288397,0.26559803,692.59,690.88,0.28948587]
[1736685288693,0.28877947,692.57,690.88,0.28948587]
[1736685288898,0.26559803,692.56,690.88,0.28948587]
[1736685289697,0.28877947,692.57,690.88,0.28948587]
[1736685289897,0.26560185,692.56,690.88,0.28948587]
[1736685291398,0.28878781,692.55,690.88,0.28948587]
[1736685291596,0.26560185,692.54,690.88,2.9638633]
[1736685291999,0.28879615,692.53,690.88,2.9638633]
[1736685292295,0.26560185,692.52,690.88,2.9638633]
[1736685292498,0.28880449,692.51,690.88,2.9638633]
[1736685292701,0.26560886,692.5,690.88,2.9638633]
[1736685293001,0.28881283,692.49,690.88,2.9638633]
[1736685293301,0.26560886,692.48,690.89,2.99917667]
[1736685293502,0.26560886,692.48,690.9,2.96385492]
[1736685294403,0.28882117,692.47,690.91,0.2894733]
[1736685294605,0.26560886,692.46,690.91,0.2894733]
[1736685294802,0.28882951,692.45,690.91,0.2894733]
[1736685295002,0.26560886,692.44,690.91,0.2894733]
[1736685295203,0.26560886,692.44,690.91,3.28864997]
[1736685295403,0.26563528,692.43,690.92,1.77276452]
[1736685295606,0.26563528,692.42,690.92,1.77276452]
[1736685295903,0.26563528,692.41,690.92,1.77276452]
[1736685296106,0.26563528,692.4,690.92,1.77276452]
[1736685296403,0.28882951,692.45,690.92,1.77276452]
[1736685296603,0.26561921,692.44,690.91,0.2894733]
[1736685297303,0.28883786,692.43,690.91,0.2894733]
[1736685297503,0.26561921,692.42,690.91,0.2894733]
[1736685297998,0.28883786,692.43,690.91,0.2894733]
[1736685297999,0.2888462,692.41,690.91,0.2894733]
[1736685298600,1.50943396,692.4,690.91,0.2894733]
[1736685299003,0.28885454,692.39,690.91,0.2894733]
[1736685304303,0.26565259,692.38,690.91,0.2894733]
[1736685305305,0.26565469,692.37,690.91,0.2894733]
[1736685305506,0.26565469,692.38,690.91,0.2894733]
[1736685305713,0.26565469,692.37,690.91,0.2894733]
[1736685305911,0.26565469,692.36,690.91,0.2894733]
[1736685306108,1.08033813,692.34,690.91,0.2894733]
[1736685306914,1.08033813,692.38,690.91,0.2894733]
[1736685307112,0.2656343,692.37,690.91,0.2894733]
[1736685308014,1.08033813,692.37,690.91,0.2894733]
[1736685308813,0.28885454,692.39,690.92,1.29241223]
[1736685310509,0.28885454,692.39,690.91,1.58188553]
[1736685311418,0.28885454,692.39,690.96,1.29241223]
[1736685311818,0.28885454,692.39,690.97,0.28944816]
[1736685312411,0.28885454,692.39,690.98,1.29241223]
[1736685312613,0.28885454,692.39,690.99,0.28943978]
[1736685313219,0.28885454,692.39,690.99,1.58185201]
[1736685314318,0.28885454,692.39,690.99,0.28943978]
[1736685318727,1.08033813,692.34,690.99,0.28943978]
[1736685319326,1.08033813,692.35,690.99,0.28943978]
[1736685320628,0.2888754,692.34,690.99,0.28943978]
[1736685334134,0.26568041,692.33,690.99,0.28943978]
[1736685334534,0.2888754,692.34,690.99,0.28943978]
[1736685337229,0.26567415,692.33,690.99,0.28943978]
[1736685337735,0.26568314,692.32,690.99,0.28943978]
[1736685338036,0.26568314,692.31,690.99,0.28943978]
[1736685338530,0.26568783,692.3,690.99,0.28943978]
[1736685338736,0.28889627,692.29,690.99,0.28943978]
[1736685340034,0.26568332,692.28,690.99,0.28943978]
[1736685340436,1.50978322,692.31,690.99,0.28943978]
[1736685340437,0.28890461,692.27,690.99,0.28943978]
[1736685341137,1.36924274,692.27,690.99,0.28943978]
[1736685341932,0.28890461,692.27,690.99,0.28943978]
[1736685346241,1.36924274,692.27,690.99,0.28943978]
[1736685346837,1.08033813,692.24,690.99,0.28943978]
[1736685347939,1.08033813,692.23,690.99,0.28943978]
[1736685348235,0.28892548,692.22,690.99,0.28943978]
[1736685348939,1.50985964,692.21,690.99,0.28943978]
[1736685349843,0.28893383,692.2,690.99,0.28943978]
[1736685352046,1.36927196,692.2,690.99,0.28943978]
[1736685353145,1.08033813,692.17,690.99,0.28943978]
[1736685354039,1.08033813,692.19,690.99,0.28943978]
[1736685355239,1.08033813,692.18,690.99,0.28943978]
[1736685356546,0.28893383,692.2,690.99,0.28943978]
[1736685357545,1.08033813,692.19,690.99,0.28943978]
[1736685358247,0.28894218,692.18,690.99,0.28943978]
[1736685361655,1.5099197,692.17,690.99,0.28943978]
[1736685362558,0.28895053,692.16,690.99,0.28943978]
[1736685365059,1.36928866,692.16,690.99,0.28943978]
[1736685366365,1.08033813,692.13,690.99,0.28943978]
[1736685366756,1.36930118,692.13,690.99,0.28943978]
[1736685368263,1.08033813,692.11,690.99,0.28943978]
[1736685369063,1.08033813,692.06,690.99,0.28943978]
[1736685369460,1.36933041,692.06,690.99,0.28943978]
[1736685370066,0.28899228,692.06,690.99,0.28943978]
[1736685399574,1.50927576,692.51,690.99,0.28943978]
[1736685399874,0.28880866,692.5,690.99,0.28943978]
[1736685401074,0.28880866,692.5,691.02,1.29241223]
[1736685401269,0.28880866,692.5,691.03,0.28942303]
[1736685423694,0.28880866,692.5,691.08,1.29241223]
[1736685424090,0.28880866,692.5,691.09,0.2893979]
[1736685425696,0.28880866,692.5,691.09,1.58181013]
[1736685426793,0.28880866,692.5,691.12,1.29241223]
[1736685428192,0.28880866,692.5,691.09,1.58181013]
[1736685429296,0.28880866,692.5,691.13,1.29241223]
[1736685431499,1.08033813,692.48,691.13,1.29241223]
[1736685431704,0.28882117,692.47,691.13,1.29241223]
[1736685432203,0.28882117,692.47,691.09,2.06105186]
[1736685432204,1.08033813,692.43,691.12,1.29241223]
[1736685432705,1.36917599,692.43,691.12,1.29241223]
[1736685433307,1.36917599,692.43,691.11,1.77165396]
[1736685433308,1.08033813,692.37,691.11,1.77165396]
[1736685434207,1.08033813,692.37,691.1,1.77165396]
[1736685434407,1.08033813,692.36,691.1,1.77165396]
[1736685435807,1.08033813,692.35,691.1,1.77165396]
[1736685436000,1.08033813,692.35,691.09,3.28602814]
[1736685436404,1.08033813,692.3,691.09,3.28602814]
[1736685436808,1.08033813,692.3,691.09,0.2893979]
[1736685437502,1.08033813,692.29,691.09,0.2893979]
[1736685438308,1.08033813,692.27,691.09,0.2893979]
[1736685438608,0.28890879,692.26,691.09,0.2893979]
[1736685442708,1.50965769,692.25,691.09,0.2893979]
[1736685443813,0.28891713,692.24,691.09,0.2893979]
[1736685473733,0.28891713,692.24,691.09,2.96875177]
[1736685474735,0.28891713,692.24,691.1,2.99663024]
[1736685474930,0.28891713,692.24,691.11,2.67935387]
[1736685475737,0.28891713,692.24,691.11,1.77470135]
[1736685476432,0.28891713,692.24,691.09,0.2893979]
[1736685480041,0.28891713,692.24,691.09,1.58181013]
[1736685481542,0.28891713,692.24,691.1,1.29241223]
[1736685482639,0.28891713,692.24,691.09,2.06409925]
[1736685482640,0.28891713,692.24,691.13,1.29241223]
[1736685483340,0.28891713,692.24,691.15,1.29241223]
[1736685484237,0.28891713,692.24,691.11,3.06711358]
[1736685484442,0.28891713,692.24,691.12,3.90200418]
[1736685484644,0.28891713,692.24,691.13,2.68007529]
[1736685485142,0.28891713,692.24,691.13,1.77470135]
[1736685485346,0.28891713,692.24,691.13,2.68023461]
[1736685486247,0.28891713,692.24,691.14,2.99663024]
[1736685486448,0.28891713,692.24,691.15,1.77470135]
[1736685487450,0.28891713,692.24,691.14,2.99663024]
[1736685487749,0.28891713,692.24,691.09,0.2893979]
[1736685554000,1.36925526,692.24,691.09,0.2893979]
[1736685555098,0.28891713,692.24,691.09,0.2893979]
[1736685559402,1.08033813,692.17,691.09,0.2893979]
[1736685560407,1.08033813,692.19,691.09,0.2893979]
[1736685561307,0.28891713,692.24,691.09,0.2893979]
[1736685561308,1.08033813,692.21,691.09,0.2893979]
[1736685563310,0.28891713,692.24,691.09,0.2893979]
[1736685563311,1.08033813,692.19,691.09,0.2893979]
[1736685565110,1.08033813,692.18,691.09,0.2893979]
[1736685566013,1.08033813,692.15,691.09,0.2893979]
[1736685567008,1.08033813,692.19,691.09,0.2893979]
[1736685571811,1.08033813,692.17,691.09,0.2893979]
[1736685573711,1.08033813,692.16,691.09,0.2893979]
[1736685574919,1.08033813,692.15,691.09,0.2893979]
[1736685575619,1.08033813,692.14,691.09,0.2893979]
[1736685577319,1.08033813,692.13,691.09,0.2893979]
[1736685580222,1.08033813,692.12,691.09,0.2893979]
[1736685582422,1.08033813,692.15,691.09,0.2893979]
[1736685584328,1.08033813,692.14,691.09,0.2893979]
[1736685585027,1.08033813,692.16,691.09,0.2893979]
[1736685586926,1.08033813,692.15,691.09,0.2893979]
[1736685589933,1.08033813,692.12,691.09,0.2893979]
[1736685591537,1.08033813,692.11,691.09,0.2893979]
[1736685592535,1.08033813,692.14,691.09,0.2893979]
[1736685593234,1.08033813,692.15,691.09,0.2893979]
[1736685596238,1.08033813,692.21,691.09,0.2893979]
[1736685596937,1.08033813,692.22,691.09,0.2893979]
[1736685599042,0.28891713,692.24,691.09,0.2893979]
[1736685620357,0.28891713,692.24,691.09,1.58181013]
[1736685621057,0.28891713,692.24,691.09,0.2893979]
[1736685630862,0.28891713,692.24,691.09,2.97435238]
[1736685631963,0.28891713,692.24,691.1,2.99663024]
[1736685632168,0.28891713,692.24,691.11,2.68495448]
[1736685633768,0.28891713,692.24,691.12,2.99663024]
[1736685633967,0.28891713,692.24,691.13,1.77886091]
[1736685635766,0.28891713,692.24,691.09,0.2893979]
[1736685638271,0.28891713,692.24,691.09,1.58181013]
[1736685640374,0.28891713,692.24,691.09,0.2893979]
[1736685649981,0.28891713,692.24,691.09,2.97427617]
[1736685650880,0.28891713,692.24,691.1,2.99663024]
[1736685651081,0.28891713,692.24,691.14,1.29241223]
[1736685652283,0.28891713,692.24,691.16,1.29241223]
[1736685652684,1.08033813,692.49,691.16,1.29241223]
[1736685653186,1.08033813,692.49,691.17,0.28936441]
[1736685653386,1.50895945,692.63,691.17,0.28936441]
[1736685653582,0.28875862,692.62,691.17,0.28936441]
[1736685656789,1.08033813,692.6,691.17,0.28936441]
[1736685657190,0.28877113,692.59,691.17,0.28936441]
[1736685660992,1.08033813,692.55,691.17,0.28936441]
[1736685661192,0.28879198,692.54,691.17,0.28936441]
[1736685662291,1.36913011,692.54,691.17,0.28936441]
[1736685663092,1.36913011,692.54,691.19,1.29241223]
[1736685663093,1.08033813,692.51,691.19,1.29241223]
[1736685663794,1.36914262,692.51,691.19,1.29241223]
[1736685663995,1.08033813,692.39,691.17,0.28936441]
[1736685666693,1.08033813,692.37,691.17,0.28936441]
[1736685667692,1.08033813,692.38,691.17,0.28936441]
[1736685668798,1.08033813,692.37,691.17,0.28936441]
[1736685671298,1.08033813,692.39,691.17,0.28936441]
[1736685676106,1.08033813,692.4,691.17,0.28936441]
[1736685678000,0.28882117,692.47,691.17,0.28936441]
[1736685678001,1.08033813,692.43,691.17,0.28936441]
[1736685678402,1.08033813,692.43,691.17,2.97031249]
[1736685679712,1.08033813,692.43,691.18,2.99663024]
[1736685679905,1.3691593,692.47,691.19,1.77259088]
[1736685680505,1.3691593,692.47,691.19,2.68136256]
[1736685681203,1.08033813,692.46,691.2,2.99663024]
[1736685681405,1.08033813,692.46,691.21,1.77259088]
[1736685682309,1.3691593,692.47,691.21,1.77259088]
[1736685682908,1.3691593,692.47,691.21,2.68130849]
[1736685683106,1.3691593,692.47,691.17,3.28599465]
[1736685683511,1.3691593,692.47,691.17,4.57840688]
[1736685684613,0.28882117,692.47,691.17,0.28936441]
[1736685689421,1.3691593,692.47,691.17,0.28936441]
[1736685690421,1.08033813,692.45,691.17,0.28936441]
[1736685691315,1.3691593,692.47,691.17,0.28936441]
[1736685693115,1.08033813,692.44,691.17,0.28936441]
[1736685694118,1.08033813,692.41,691.21,1.29241223]
[1736685695324,1.08033813,692.41,691.17,0.28936441]
[1736685695325,1.08033813,692.43,691.23,1.29241223]
[1736685696423,1.08033813,692.45,691.26,1.29241223]
[1736685697221,0.28882117,692.47,691.25,1.29241223]
[1736685698024,0.28882117,692.47,691.31,1.29241223]
[1736685699123,0.28882117,692.47,691.33,1.29241223]
[1736685700421,0.28882117,692.47,691.29,1.29241223]
[1736685701218,0.28882117,692.47,691.28,0.90908098]
[1736685701425,0.28882117,692.47,691.27,2.68685813]
[1736685702517,0.28882117,692.47,691.28,2.99663024]
[1736685702725,0.28882117,692.47,691.29,2.68685813]
[1736685704126,0.28882117,692.47,691.28,2.99663024]
[1736685704326,0.28882117,692.47,691.18,1.29241223]
[1736685704526,0.28882117,692.47,691.17,1.58177664]
[1736685705227,0.28882117,692.47,691.17,0.28936441]
[1736685724733,0.28882117,692.47,691.26,1.29241223]
[1736685725335,0.28882117,692.47,691.25,1.29241223]
[1736685730540,0.28882117,692.47,691.25,3.97815557]
[1736685730737,0.28882117,692.47,691.27,1.29241223]
[1736685731940,0.28882117,692.47,691.27,3.97815557]
[1736685732137,0.28882117,692.47,691.28,0.90861512]
[1736685732538,0.28882117,692.47,691.27,2.68574334]
[1736685733140,0.28882117,692.47,691.28,3.00637883]
[1736685733442,0.28882117,692.47,691.29,1.77712822]
[1736685734044,1.08033813,692.46,691.29,1.77712822]
[1736685735343,1.08033813,692.46,691.23,2.68614709]
[1736685736344,1.08033813,692.44,691.23,2.68614709]
[1736685736541,1.08033813,692.44,691.24,3.00637883]
[1736685736744,1.08033813,692.44,691.25,2.68614709]
[1736685737144,1.08033813,692.42,691.25,2.68614709]
[1736685738147,1.08033813,692.46,691.25,2.68614709]
[1736685738450,1.08033813,692.46,691.26,3.00637883]
[1736685739243,0.28882117,692.47,691.26,3.00637883]
[1736685739744,0.28882117,692.47,691.27,1.77755711]
[1736685740148,0.28882117,692.47,691.19,2.68624094]
[1736685741148,0.28882117,692.47,691.2,0.28935185]
[1736685741849,0.28882117,692.47,691.2,4.20441451]
[1736685742148,0.28882117,692.47,691.21,2.68624094]
[1736685743149,0.28882117,692.47,691.22,3.00637883]
[1736685743350,0.28882117,692.47,691.23,2.68624094]
[1736685743545,0.28882117,692.47,691.24,0.2893351]